bitfinex-derivatives/quotes_ETHF0:USTF0_20250701
["timestamp","ask_amount","ask_price","bid_price","bid_amount"]
[1751408220112,38.22263,2407.5,2407.4,0.83064]
[1751408220300,38.22263,2407.5,2407.4,6.366496]
[1751408221903,0.83063,2407.5,2407.4,6.366496]
[1751408222109,38.22163,2407.5,2407.4,6.366496]
[1751408222506,0.83063,2407.5,2407.4,6.366496]
[1751408222707,38.22063,2407.5,2407.4,7.706196]
[1751408222906,38.21763,2407.5,2407.4,7.706196]
[1751408223404,0.83063,2407.5,2407.4,12.706196]
[1751408223712,38.21663,2407.5,2407.4,12.706196]
[1751408225207,38.21563,2407.5,2407.4,12.706196]
[1751408225402,59.819,2407.6,2407.4,12.706196]
[1751408225610,72.5136,2407.6,2407.5,1.3186]
[1751408225914,98.0336,2407.6,2407.5,1.3186]
[1751408226105,60.6496,2407.6,2407.5,1.3186]
[1751408226305,86.1666,2407.6,2407.5,2.14921]
[1751408227713,59.819,2407.6,2407.5,2.14921]
[1751408228015,86.16658,2407.6,2407.5,2.14921]
[1751408228810,86.16258,2407.6,2407.5,3.01161]
[1751408230213,86.16258,2407.6,2407.5,9.378106]
[1751408231022,85.332,2407.6,2407.5,9.378106]
[1751408231207,86.16258,2407.6,2407.5,9.378106]
[1751408232213,85.332,2407.6,2407.5,9.378106]
[1751408232516,59.819,2407.6,2407.5,9.378106]
[1751408232714,0.8305,2407.9,2407.8,0.83051]
[1751408232913,12.6925,2407.9,2407.8,0.83051]
[1751408233117,11.862,2407.9,2407.8,0.83051]
[1751408233314,37.37,2407.9,2407.8,0.83051]
[1751408233515,11.862,2407.9,2407.8,0.83051]
[1751408233712,11.862,2407.9,2407.8,8.25973751]
[1751408233906,37.37,2407.9,2407.8,8.25973751]
[1751408234107,0.83043,2408.1,2408.0,0.83044]
[1751408234307,26.33843,2408.1,2408.0,0.83044]
[1751408234508,26.3384,2408.1,2408.0,0.83044]
[1751408234708,26.3354,2408.1,2408.0,1.69084]
[1751408234908,0.8304,2408.1,2408.0,1.69084]
[1751408235110,26.3354,2408.1,2408.0,1.69084]
[1751408235313,26.3354,2408.1,2408.0,8.057336]
[1751408235815,11.862,2408.2,2408.0,8.057336]
[1751408235816,0.8304,2408.2,2408.1,0.83037]
[1751408236322,26.3344,2408.2,2408.1,2.25927]
[1751408237316,0.8304,2408.2,2408.1,2.25927]
[1751408237520,72.48836,2408.3,2408.2,0.83037]
[1751408237716,97.99136,2408.3,2408.2,0.83037]
[1751408239022,72.48836,2408.3,2408.2,0.83037]
[1751408239320,97.98936,2408.3,2408.2,0.83037]
[1751408239521,97.98936,2408.3,2408.2,1.65447]
[1751408240322,38.19136,2408.3,2408.2,8.020966]
[1751408242721,0.83033,2408.4,2408.3,0.8303]
[1751408242922,26.32733,2408.4,2408.3,0.8303]
[1751408243221,0.83033,2408.3,2408.2,10.45016351]
[1751408243521,0.83033,2408.3,2408.2,7.190596]
[1751408243924,0.83033,2408.3,2408.2,6.366496]
[1751408244123,2.22893,2408.3,2408.2,6.366496]
[1751408244623,39.57093,2408.3,2408.2,6.366496]
[1751408245016,38.17233,2408.3,2408.2,7.196866]
[1751408245217,38.17233,2408.3,2408.2,6.366496]
[1751408246318,0.83033,2408.3,2408.2,6.366496]
[1751408246526,38.17233,2408.3,2408.2,6.366496]
[1751408246826,39.60543,2408.3,2408.2,6.366496]
[1751408247029,39.60543,2408.3,2408.2,7.196866]
[1751408247324,39.60543,2408.3,2408.2,6.366496]
[1751408247524,38.17033,2408.3,2408.2,7.196866]
[1751408249026,26.32133,2408.3,2408.2,7.196866]
[1751408249325,26.32033,2408.3,2408.2,7.196866]
[1751408249521,27.68963,2408.3,2408.2,7.196866]
[1751408251420,27.68963,2408.3,2408.2,6.366496]
[1751408251821,27.68963,2408.3,2408.2,7.196866]
[1751408252323,1.3693,2408.3,2408.2,7.196866]
[1751408252532,0.83033,2408.4,2408.3,0.8303]
[1751408252721,26.31733,2408.4,2408.3,3.25952751]
[1751408252917,0.83033,2408.3,2408.2,6.366496]
[1751408253126,2.15963,2408.3,2408.2,6.366496]
[1751408256731,3.01763,2408.3,2408.2,6.366496]
[1751408260028,2.15963,2408.3,2408.2,6.366496]
[1751408260222,2.95543,2408.3,2408.2,6.366496]
[1751408263027,1.62613,2408.3,2408.2,7.196866]
[1751408263231,0.83033,2408.3,2408.2,9.62609351]
[1751408263432,37.331,2408.3,2408.2,9.62609351]
[1751408264140,38.16133,2408.3,2408.2,9.62609351]
[1751408265835,38.16133,2408.3,2408.2,7.196866]
[1751408269638,12.67933,2408.3,2408.2,9.62609351]
[1751408269936,38.15733,2408.3,2408.2,9.62609351]
[1751408270137,38.15733,2408.3,2408.2,7.196866]
[1751408270439,38.15733,2408.3,2408.2,6.366496]
[1751408271638,41.45285751,2408.3,2408.2,6.366496]
[1751408273743,39.02363,2408.3,2408.2,6.366496]
[1751408274152,1.69663,2408.3,2408.2,6.366496]
[1751408274442,39.01363,2408.3,2408.2,6.366496]
[1751408276445,1.69663,2408.3,2408.2,6.366496]
[1751408276642,39.01163,2408.3,2408.2,6.366496]
[1751408279647,41.44085751,2408.3,2408.2,6.366496]
[1751408280948,46.44085751,2408.3,2408.2,6.366496]
[1751408285043,45.57455751,2408.3,2408.2,6.366496]
[1751408285248,46.41895751,2408.3,2408.2,6.366496]
[1751408287349,41.41895751,2408.3,2408.2,6.366496]
[1751408288349,1.67473,2408.3,2408.2,6.366496]
[1751408288550,38.14133,2408.3,2408.2,6.366496]
[1751408289343,40.57055751,2408.3,2408.2,6.366496]
[1751408291854,40.57055751,2408.3,2408.2,4.641796]
[1751408292554,40.57055751,2408.3,2408.2,2.812156]
[1751408292754,40.57055751,2408.3,2408.2,1.974576]
[1751408295156,40.57055751,2408.3,2408.2,0.243436]
[1751408296052,45.57055751,2408.3,2408.2,0.243436]
[1751408296257,45.57055751,2408.3,2408.2,6e-06]
[1751408296556,40.57055751,2408.3,2408.2,6e-06]
[1751408303561,40.56255751,2408.3,2408.2,6e-06]
[1751408304562,0.83033,2408.3,2408.2,6e-06]
[1751408304758,40.55455751,2408.3,2408.2,6e-06]
[1751408305366,41.87975751,2408.3,2408.2,6e-06]
[1751408308264,0.83065,2407.4,2407.3,5.80350956]
[1751408308566,0.83065,2407.4,2406.5,12.85533632]
[1751408308567,0.83075,2407.1,2407.0,4.96215956]
[1751408308763,25.46,2407.1,2407.0,6.37245956]
[1751408308961,26.29075,2407.1,2407.0,11.37245956]
[1751408309969,38.12775,2407.1,2407.0,11.37245956]
[1751408310364,2.07654,2407.5,2407.0,13.80168707]
[1751408310564,0.83068,2407.3,2407.2,2.42922751]
[1751408311069,0.83067,2407.4,2407.2,8.25994751]
[1751408311266,26.29268,2407.3,2407.2,3.25994751]
[1751408311872,0.83068,2407.3,2407.2,8.25994751]
[1751408312068,25.461,2407.3,2407.2,8.25994751]
[1751408312969,26.29168,2407.3,2407.2,8.25994751]
[1751408313569,26.29168,2407.3,2407.2,5.0]
[1751408313769,0.83075,2407.1,2407.0,10.74272351]
[1751408314068,26.29375,2407.1,2407.0,10.74272351]
[1751408314268,26.29375,2407.1,2407.0,15.74272351]
[1751408314870,26.29375,2407.1,2407.0,16.57349351]
[1751408315072,26.29375,2407.1,2407.0,15.74272351]
[1751408315270,26.29375,2407.1,2407.0,16.61842351]
[1751408315460,26.29375,2407.1,2407.0,17.44921351]
[1751408317373,26.29375,2407.1,2407.0,12.44921351]
[1751408317568,26.29375,2407.1,2407.0,11.61842351]
[1751408317767,26.29375,2407.1,2407.0,12.44921351]
[1751408317967,26.29375,2407.1,2407.0,9.189196]
[1751408318572,26.29375,2407.1,2407.0,8.313496]
[1751408322981,38.12975,2407.1,2407.0,9.144286]
[1751408325684,0.83075,2407.2,2407.1,0.83071]
[1751408325880,38.12975,2407.2,2407.1,3.25993751]
[1751408326083,38.12975,2407.2,2407.1,4.58093751]
[1751408326384,38.12975,2407.2,2407.1,9.58093751]
[1751408326579,12.66675,2407.2,2407.1,9.58093751]
[1751408326778,38.12975,2407.2,2407.1,9.58093751]
[1751408329586,38.12975,2407.2,2407.1,10.40253751]
[1751408330285,38.12975,2407.2,2407.1,18.71603351]
[1751408330487,38.12975,2407.2,2407.1,13.71603351]
[1751408333286,38.12972,2407.2,2407.1,13.71603351]
[1751408333486,12.6667,2407.4,2407.3,0.83065]
[1751408333681,38.1277,2407.4,2407.3,3.25987751]
[1751408335192,38.1277,2407.4,2407.3,11.57337351]
[1751408337194,38.1277,2407.4,2407.3,8.313496]
[1751408337895,38.9628,2407.4,2407.3,8.313496]
[1751408344498,38.9628,2407.4,2407.3,9.144176]
[1751408344796,38.9628,2407.4,2407.3,8.313496]
[1751408345296,1.6658,2407.4,2407.3,8.313496]
[1751408345492,27.1248,2407.4,2407.3,8.313496]
[1751408345793,28.581,2407.4,2407.3,8.313496]
[1751408348897,29.4041,2407.4,2407.3,8.313496]
[1751408350191,26.2877,2407.4,2407.3,11.57340351]
[1751408354006,0.8307,2407.4,2407.3,11.57340351]
[1751408354206,26.2857,2407.4,2407.3,11.57340351]
[1751408356609,0.83063,2407.5,2407.4,0.83061]
[1751408356909,26.28463,2407.5,2407.4,0.83061]
[1751408358710,26.28363,2407.5,2407.4,0.83061]
[1751408360211,26.28363,2407.5,2407.4,9.144106]
[1751408368822,0.83063,2407.5,2407.4,9.144106]
[1751408369021,26.27763,2407.5,2407.4,9.144106]
[1751408374329,13.52771,2407.6,2407.5,0.83061]
[1751408374531,40.37001,2407.6,2407.5,3.25983751]
[1751408375227,40.37001,2407.6,2407.5,11.57333351]
[1751408375830,3.09701,2407.6,2407.5,11.57333351]
[1751408376131,40.36901,2407.6,2407.5,11.57333351]
[1751408377730,3.09701,2407.6,2407.5,11.57333351]
[1751408377926,40.36801,2407.6,2407.5,11.57333351]
[1751408380433,1.69971,2407.6,2407.5,11.57333351]
[1751408380632,38.96871,2407.6,2407.5,11.57333351]
[1751408381625,40.32631,2407.6,2407.5,11.57333351]
[1751408381821,40.32631,2407.6,2407.5,8.313496]
[1751408388531,3.05731,2407.6,2407.5,8.313496]
[1751408388736,3.05731,2407.6,2407.5,11.57333351]
[1751408389033,60.6634,2407.7,2407.6,0.83058]
[1751408389237,11.828,2407.8,2407.7,0.83055]
[1751408389538,37.265,2407.8,2407.7,3.25977751]
[1751408389937,0.83047,2408.0,2407.9,0.83048]
[1751408390137,13.48624,2408.1,2408.0,0.83044]
[1751408390533,38.92224,2408.1,2408.0,0.83044]
[1751408390835,38.09444,2408.1,2408.0,0.83044]
[1751408392339,12.65844,2408.1,2408.0,0.83044]
[1751408392539,12.6574,2408.2,2408.1,0.83038]
[1751408392739,38.0914,2408.2,2408.1,0.83038]
[1751408393637,61.86666,2408.6,2408.2,0.83035]
[1751408393840,11.827,2408.4,2408.2,3.25957751]
[1751408394033,0.83037,2408.3,2408.2,3.25957751]
[1751408394234,26.26237,2408.3,2408.2,2.42922751]
[1751408394936,0.83037,2408.3,2408.2,2.42922751]
[1751408395144,38.08937,2408.3,2408.2,11.57309351]
[1751408396541,12.65737,2408.3,2408.2,11.57309351]
[1751408396743,38.08837,2408.3,2408.2,11.57309351]
[1751408398440,11.827,2408.3,2408.2,11.57309351]
[1751408398643,37.255,2408.3,2408.2,11.57309351]
[1751408398839,0.9007,2408.5,2408.2,10.74272351]
[1751408399046,25.428,2408.4,2408.3,0.83034]
[1751408399238,25.428,2408.4,2408.3,4.10736751]
[1751408399438,26.2583,2408.4,2408.3,4.10736751]
[1751408400043,25.428,2408.4,2408.3,4.10736751]
[1751408400244,26.2583,2408.4,2408.3,12.42086351]
[1751408400444,26.2583,2408.4,2408.3,8.313496]
[1751408400738,0.8303,2408.4,2408.3,8.313496]
[1751408400942,38.0733,2408.4,2408.3,8.313496]
[1751408403948,40.50252751,2408.4,2408.3,8.313496]
[1751408405344,41.38292751,2408.4,2408.3,8.313496]
[1751408408649,40.50252751,2408.4,2408.3,8.313496]
[1751408408844,41.32922751,2408.4,2408.3,8.313496]
[1751408410451,1.657,2408.4,2408.3,8.313496]
[1751408410656,13.475,2408.4,2408.3,11.57306351]
[1751408410952,12.6483,2408.4,2408.3,11.57306351]
[1751408411147,38.0703,2408.4,2408.3,11.57306351]
[1751408411344,38.0703,2408.4,2408.3,8.313496]
[1751408413540,38.0693,2408.4,2408.3,8.313496]
[1751408414441,38.0693,2408.4,2408.3,9.143836]
[1751408416751,38.0693,2408.4,2408.3,8.313496]
[1751408418255,38.0693,2408.4,2408.3,9.143836]
[1751408418455,38.0693,2408.4,2408.3,8.313496]
[1751408419354,38.0693,2408.4,2408.3,9.143836]
[1751408424756,61.4462,2408.6,2408.4,0.8303]
[1751408424956,72.43823,2408.6,2408.5,4.14699751]
[1751408425156,97.024,2408.6,2408.5,4.14699751]
[1751408425356,97.024,2408.6,2408.5,12.46049351]
[1751408425560,59.791,2408.6,2408.5,12.46049351]
[1751408425855,2.3192,2409.0,2408.9,0.83013]
[1751408426060,38.9239,2409.0,2408.9,3.25935751]
[1751408426262,13.5079,2409.0,2408.9,3.25935751]
[1751408426462,1.6909,2409.0,2408.9,3.25935751]
[1751408426658,38.9219,2409.0,2408.9,3.25935751]
[1751408427256,38.9209,2409.0,2408.9,3.25935751]
[1751408427451,38.0908,2409.0,2408.7,2.42922751]
[1751408427655,2.20355,2408.9,2408.7,2.42922751]
[1751408427860,25.414,2408.8,2408.7,3.25942751]
[1751408428164,26.24417,2408.8,2408.7,3.25942751]
[1751408429962,25.414,2408.8,2408.7,3.25942751]
[1751408430161,25.414,2408.8,2408.7,11.57292351]
[1751408430656,0.8304,2409.1,2408.8,2.07537]
[1751408430961,25.411,2409.3,2409.1,2.07514]
[1751408431162,0.82995,2409.5,2409.2,3.25925751]
[1751408431362,0.82995,2409.5,2409.4,2.42922751]
[1751408431663,13.52762,2409.6,2409.5,0.82992]
[1751408431963,38.93862,2409.6,2409.5,0.82992]
[1751408432260,59.77,2410.0,2409.4,4.50409751]
[1751408432464,26.24079,2409.9,2409.8,2.42922751]
[1751408432962,27.10319,2409.9,2409.8,2.42922751]
[1751408433357,0.82986,2409.7,2409.6,0.8284]
[1751408433561,26.23786,2409.7,2409.6,0.82989]
[1751408435058,0.82989,2409.6,2409.5,0.82991]
[1751408435264,27.48268,2409.7,2409.3,0.82998]
[1751408435461,2.237,2409.5,2409.3,0.82998]
[1751408435661,0.82999,2409.3,2409.2,4.13872751]
[1751408435862,25.407,2409.4,2409.2,3.30872751]
[1751408436060,0.82999,2409.3,2409.2,3.25922751]
[1751408436259,26.23698,2409.4,2409.3,0.82999]
[1751408436858,0.82999,2409.3,2409.2,3.25923751]
[1751408437060,0.82999,2409.3,2409.2,2.42922751]
[1751408437262,0.82999,2409.3,2409.2,10.74272351]
[1751408437858,0.82999,2409.3,2409.2,8.313496]
[1751408438162,2.19309,2409.3,2409.2,8.313496]
[1751408438967,3.05469,2409.3,2409.2,8.313496]
[1751408439564,2.19309,2409.3,2409.2,8.313496]
[1751408439764,3.05469,2409.3,2409.2,8.313496]
[1751408442862,0.83027,2408.5,2408.4,2.42922751]
[1751408443467,0.83027,2408.5,2408.1,7.87280808]
[1751408443468,0.83034,2408.3,2408.2,3.25957751]
[1751408443662,0.83034,2408.3,2408.2,2.42922751]
[1751408444775,0.83034,2408.3,2408.2,3.25959751]
[1751408445973,0.83034,2408.3,2408.2,2.42922751]
[1751408446568,0.849,2408.4,2408.1,2.42922751]
[1751408446569,0.83037,2408.2,2408.1,2.42922751]
[1751408447075,0.83037,2408.2,2408.1,3.25963751]
[1751408447476,0.83037,2408.2,2408.1,2.42922751]
[1751408448176,0.83037,2408.2,2408.1,3.25963751]
[1751408448477,0.83037,2408.2,2408.1,2.42922751]
[1751408449480,0.83037,2408.2,2408.1,3.25963751]
[1751408450072,0.83034,2408.3,2408.2,0.83035]
[1751408450276,0.83034,2408.3,2408.2,1.70065]
[1751408450671,0.83034,2408.3,2408.2,0.8703]
[1751408451280,0.83037,2408.2,2408.1,2.42922751]
[1751408451475,0.83041,2408.1,2408.0,2.42922751]
[1751408451674,0.83055,2407.7,2407.6,5.79681808]
[1751408451979,0.83061,2407.5,2407.4,2.42922751]
[1751408453366,0.83061,2407.5,2407.4,3.25987751]
[1751408456077,2.3539,2407.6,2407.5,0.83061]
[1751408456078,1.7296,2407.6,2407.5,0.83061]
[1751408456679,38.05257,2407.7,2407.6,0.83058]
[1751408456874,38.05257,2407.7,2407.6,3.25980751]
[1751408459383,37.222,2407.7,2407.6,3.25980751]
[1751408459578,0.8833,2408.0,2407.6,2.42922751]
[1751408459782,12.64351,2407.9,2407.8,0.83049]
[1751408459978,38.05351,2407.9,2407.8,3.25971751]
[1751408461179,37.223,2407.9,2407.8,3.25971751]
[1751408461381,11.813,2407.9,2407.8,3.25971751]
[1751408462382,12.64348,2407.9,2407.8,3.25971751]
[1751408464576,12.64348,2407.9,2407.6,2.87246]
[1751408464577,0.83054,2407.8,2407.7,0.83052]
[1751408464777,0.83054,2407.8,2407.7,2.42922751]
[1751408464984,26.23954,2407.8,2407.7,2.42922751]
[1751408465183,28.41384,2407.8,2407.7,2.42922751]
[1751408466380,27.08944,2407.8,2407.7,3.25977751]
[1751408466878,12.64351,2407.9,2407.8,0.83051]
[1751408467083,38.05351,2407.9,2407.8,0.83051]
[1751408467485,0.83051,2407.8,2407.7,3.25975751]
[1751408467687,0.83051,2407.8,2407.7,2.42922751]
[1751408468275,0.83051,2407.8,2407.7,3.25977751]
[1751408468475,39.29925,2407.9,2407.5,3.25982751]
[1751408468682,1.4312,2407.7,2407.3,2.42922751]
[1751408468883,0.83068,2407.4,2407.3,3.25989751]
[1751408469287,0.83068,2407.4,2407.3,2.42922751]
[1751408469985,0.83068,2407.4,2407.3,3.25990751]
[1751408472400,0.83068,2407.4,2407.3,2.42922751]
[1751408473695,0.83072,2407.2,2407.1,5.79681808]
[1751408473893,0.83072,2407.2,2407.1,0.83075]
[1751408474494,1.67602,2407.2,2407.1,0.83075]
[1751408475295,0.83075,2407.1,2407.0,3.25998751]
[1751408475499,0.83075,2407.1,2407.0,2.42922751]
[1751408475699,0.83075,2407.1,2407.0,3.26001751]
[1751408476199,0.83075,2407.1,2407.0,2.42922751]
[1751408476399,3.00555,2407.1,2407.0,2.42922751]
[1751408479304,3.00555,2407.1,2407.0,3.26001751]
[1751408479502,1.64795,2407.1,2407.0,3.26001751]
[1751408479702,0.83075,2407.1,2407.0,3.26001751]
[1751408480402,26.24075,2407.2,2407.1,0.83074]
[1751408480900,25.41,2407.2,2407.1,0.83074]
[1751408481098,12.64363,2407.5,2407.4,0.83065]
[1751408481298,11.813,2407.5,2407.4,3.25987751]
[1751408482504,2.45182,2407.8,2407.4,2.42922751]
[1751408482805,12.64351,2407.8,2407.7,0.83055]
[1751408483005,38.05451,2407.8,2407.7,0.83055]
[1751408483200,37.224,2407.8,2407.7,0.83055]
[1751408483400,11.813,2407.8,2407.7,0.83055]
[1751408483794,11.813,2407.8,2407.7,1.66525]
[1751408484299,11.813,2407.8,2407.7,3.11005]
[1751408486202,72.4084,2408.2,2408.1,0.83041]
[1751408486401,97.8184,2408.2,2408.1,2.42922751]
[1751408487105,72.4084,2408.2,2408.1,2.42922751]
[1751408487307,97.8164,2408.2,2408.1,3.25963751]
[1751408487504,97.8164,2408.2,2408.1,2.42922751]
[1751408488306,97.8164,2408.2,2407.9,2.42922751]
[1751408488502,0.83044,2408.0,2407.9,2.42922751]
[1751408488707,26.23844,2408.0,2407.9,2.42922751]
[1751408489710,26.23844,2408.0,2407.9,3.25970751]
[1751408490205,25.408,2408.0,2407.9,3.25970751]
[1751408491208,71.578,2408.2,2408.0,0.83044]
[1751408491509,25.406,2408.1,2408.0,0.83044]
[1751408492008,26.23643,2408.1,2408.0,0.83044]
[1751408492708,26.23543,2408.1,2408.0,0.83044]
[1751408494613,0.83039,2408.2,2408.1,0.83038]
[1751408494806,13.40867,2408.3,2408.2,0.83037]
[1751408495113,38.81267,2408.3,2408.2,0.83037]
[1751408495809,40.18657,2408.3,2408.2,0.83037]
[1751408497714,0.83037,2408.2,2408.1,3.25961751]
[1751408498019,0.83049,2408.0,2407.9,0.83047]
[1751408498312,26.23249,2408.0,2407.9,0.83047]
[1751408498511,2.0762,2407.9,2407.5,5.79681808]
[1751408498714,25.402,2407.8,2407.5,8.22604559]
[1751408498912,25.402,2407.8,2407.7,2.42922751]
[1751408499109,26.23254,2407.8,2407.7,2.42922751]
[1751408499416,26.23254,2407.8,2407.7,3.25977751]
[1751408499620,0.83057,2407.7,2407.6,0.83056]
[1751408499915,0.83057,2407.7,2407.6,3.25978751]
[1751408500911,27.58163,2407.8,2407.7,0.83055]
[1751408501111,25.402,2407.8,2407.7,0.83055]
[1751408502217,27.06548,2407.9,2407.8,0.83051]
[1751408502418,27.06548,2407.9,2407.8,3.25973751]
[1751408503318,26.235,2407.9,2407.8,3.25973751]
[1751408507819,0.834,2407.9,2407.8,3.25973751]
[1751408508125,25.399,2408.1,2408.0,0.83044]
[1751408508321,25.399,2408.1,2408.0,3.25966751]
[1751408508823,40.14668,2408.2,2408.1,0.83041]
[1751408510030,14.74768,2408.2,2408.1,0.83041]
[1751408510219,40.14568,2408.2,2408.1,0.83041]
[1751408515329,14.74768,2408.2,2408.1,0.83041]
[1751408515528,40.14368,2408.2,2408.1,0.83041]
[1751408516328,13.9173,2408.2,2408.1,0.83041]
[1751408516529,39.3133,2408.2,2408.1,0.83041]
[1751408516732,11.1324887,2408.2,2408.1,0.83041]
[1751408518930,1.60371,2408.4,2408.3,0.83034]
[1751408519129,26.99871,2408.4,2408.3,3.25956751]
[1751408521334,0.7734,2408.4,2408.3,3.25956751]
[1751408521527,26.1664,2408.4,2408.3,3.25956751]
[1751408522637,0.7734,2408.4,2408.3,3.25956751]
[1751408522932,26.1654,2408.4,2408.3,3.25956751]
[1751408524934,0.7734,2408.4,2408.3,3.25956751]
[1751408525330,1.65851,2408.7,2408.3,2.42922751]
[1751408525532,25.391,2408.6,2408.5,3.25949751]
[1751408526436,26.22123,2408.6,2408.5,3.25949751]
[1751408526733,25.391,2408.6,2408.5,3.25949751]
[1751408527135,1.65852,2408.7,2408.6,0.83023]
[1751408527336,28.43112,2408.7,2408.5,3.25946751]
[1751408527637,28.43112,2408.7,2408.6,0.83023]
[1751408528432,27.6009,2408.7,2408.6,0.83023]
[1751408528639,28.4311,2408.7,2408.6,0.83023]
[1751408529034,3.0411,2408.7,2408.6,0.83023]
[1751408529234,28.4291,2408.7,2408.6,0.83023]
[1751408530542,27.6008,2408.7,2408.6,0.83023]
[1751408532243,60.6184,2408.8,2408.7,0.8302]
[1751408532542,86.83457,2408.8,2408.7,2.42922751]
[1751408532739,88.18297,2408.8,2408.7,3.25942751]
[1751408533943,0.8302,2408.7,2408.6,0.83021]
[1751408534149,0.8302,2408.7,2408.5,2.42922751]
[1751408534150,0.83023,2408.6,2408.5,2.42922751]
[1751408534440,0.83028,2408.5,2408.4,0.8303]
[1751408534645,3.05008,2408.5,2408.4,0.8303]
[1751408534841,0.8303,2408.4,2408.3,3.25953751]
[1751408535043,0.83034,2408.3,2408.2,5.79782159]
[1751408535249,0.83037,2408.2,2408.1,2.42922751]
[1751408535547,1.4291,2408.2,2407.9,9.0575091]
[1751408535847,0.83048,2407.9,2407.8,6.62832159]
[1751408536044,0.83051,2407.9,2407.7,9.0575691]
[1751408536242,2.2144,2407.8,2407.7,9.0575691]
[1751408536441,2.2144,2407.8,2407.7,3.25974751]
[1751408537249,2.2144,2407.8,2407.7,2.42922751]
[1751408537250,3.04491,2407.8,2407.7,2.42922751]
[1751408537946,0.83058,2407.6,2407.5,8.2270491]
[1751408538248,26.21558,2407.6,2407.5,5.79782159]
[1751408538448,0.8307,2407.3,2407.1,3.25996751]
[1751408538748,0.7853,2407.2,2407.1,3.25996751]
[1751408538941,2.9953,2407.2,2407.1,3.25997751]
[1751408539143,3.82602,2407.2,2407.1,2.42922751]
[1751408539448,3.04072,2407.2,2407.1,2.42922751]
[1751408539647,3.82462,2407.2,2407.1,2.42922751]
[1751408540144,2.9939,2407.2,2407.1,3.25997751]
[1751408541947,11.801,2407.4,2407.3,0.83068]
[1751408542148,11.801,2407.4,2407.3,3.25990751]
[1751408544847,0.7769,2407.6,2407.3,2.42922751]
[1751408545048,0.7862,2407.8,2407.7,0.83055]
[1751408546850,0.7862,2407.8,2407.7,3.25977751]
[1751408549252,11.803,2407.9,2407.8,0.83051]
[1751408551557,0.83041,2408.1,2408.0,0.83044]
[1751408551854,26.7182,2408.1,2408.0,3.25966751]
[1751408554650,1.3322,2408.1,2408.0,3.25966751]
[1751408554953,0.7652,2408.2,2408.1,0.83041]
[1751408555154,26.1492,2408.2,2408.1,0.83041]
[1751408555354,26.97957,2408.2,2408.1,0.83041]
[1751408555555,28.34847,2408.2,2408.1,0.83041]
[1751408557353,27.5181,2408.2,2408.1,0.83041]
[1751408557656,28.34847,2408.2,2408.1,0.83041]
[1751408558754,28.34847,2408.2,2408.0,3.25964751]
[1751408558960,0.83041,2408.1,2408.0,3.25964751]
[1751408559263,1.445,2408.1,2408.0,3.25964751]
[1751408563966,2.27541,2408.1,2408.0,3.25964751]
[1751408565565,1.445,2408.1,2408.0,3.25964751]
[1751408569871,2.27541,2408.1,2408.0,3.25964751]
[1751408570173,2.27541,2408.1,2407.6,2.2655]
[1751408570174,0.83051,2407.8,2407.6,9.0214077]
[1751408570472,0.8122,2407.7,2407.6,4.07220751]
[1751408575474,0.8122,2407.7,2407.6,9.8519877]
[1751408576472,0.8122,2407.7,2407.6,4.07220751]
[1751408576673,0.8122,2407.7,2407.6,9.8519877]
[1751408576874,1.64274,2407.7,2407.6,9.8519877]
[1751408577070,0.8122,2407.7,2407.6,9.8519877]
[1751408578076,1.64274,2407.7,2407.6,8.2090077]
[1751408578277,2.98414,2407.7,2407.6,8.2090077]
[1751408578773,3.80284,2407.7,2407.6,2.42922751]
[1751408581881,3.80284,2407.7,2407.6,3.25980751]
[1751408582277,3.80284,2407.7,2407.6,2.42922751]
[1751408582479,3.80284,2407.7,2407.6,3.25980751]
[1751408582782,3.80284,2407.7,2407.6,0.83058]
[1751408582971,0.83058,2407.6,2407.5,5.77978019]
[1751408583170,2.16878,2407.6,2407.5,8.2090077]
[1751408583579,2.16878,2407.6,2407.5,2.42922751]
[1751408584885,2.16878,2407.6,2407.5,9.0396177]
[1751408586785,2.16878,2407.6,2407.5,3.25983751]
[1751408587880,0.8122,2407.7,2407.6,0.83058]
[1751408588081,25.373,2407.9,2407.8,0.83049]
[1751408588281,25.373,2407.9,2407.8,3.25971751]
[1751408588681,26.20348,2407.9,2407.8,3.25971751]
[1751408589487,26.20348,2407.9,2407.8,2.42922751]
[1751408589882,26.20348,2407.9,2407.8,3.25973751]
[1751408590181,25.373,2407.9,2407.8,3.25973751]
[1751408590587,26.20348,2407.9,2407.8,3.25973751]
[1751408590784,26.20348,2407.9,2407.8,2.42922751]
[1751408591085,26.20348,2407.9,2407.8,3.25973751]
[1751408591278,26.20348,2407.9,2407.8,2.42922751]
[1751408592582,26.20348,2407.9,2407.8,3.25973751]
[1751408593487,26.20348,2407.9,2407.8,2.42922751]
[1751408594384,2.07568,2408.5,2408.0,0.83044]
[1751408594590,0.83034,2408.3,2408.2,2.42922751]
[1751408594891,26.20034,2408.3,2408.2,2.42922751]
[1751408595188,0.83039,2408.2,2408.0,3.25965751]
[1751408595386,0.83039,2408.2,2408.1,0.83041]
[1751408597786,26.19839,2408.2,2408.1,0.83041]
[1751408600293,26.1984,2408.2,2408.0,3.25964751]
[1751408600991,26.1984,2408.2,2408.1,0.83041]
[1751408602092,0.83041,2408.1,2408.0,3.25964751]
[1751408602493,26.19541,2408.1,2408.0,3.25964751]
[1751408603592,25.365,2408.1,2408.0,3.25964751]
[1751408604293,26.19541,2408.1,2408.0,3.25964751]
[1751408604490,25.365,2408.1,2408.0,3.25964751]
[1751408604890,26.19541,2408.1,2408.0,3.25964751]
[1751408605892,26.19541,2408.1,2408.0,3.25966751]
[1751408606192,26.19541,2408.1,2407.8,9.0395177]
[1751408606193,0.83048,2407.9,2407.8,9.0395177]
[1751408606392,0.83048,2407.9,2407.8,3.25973751]
[1751408606685,0.83051,2407.8,2407.7,5.77978019]